[Event "*** Titled Tuesday Blitz"]
[Site "Chess.com"]
[Date "2021.03.30"]
[Round "2"]
[White "svilson23"]
[Black "profofchess"]
[Result "1-0"]
[WhiteElo "2270"]
[BlackElo "2444"]
[TimeControl "180+1"]
[EndTime "10:17:28 PDT"]
[Termination "svilson23 won on time"]

1. e4 {[%clk 0:03:00.9]} 1... e6 {[%clk 0:02:57.7]} 2. d4 {[%clk 0:03:00.6]}
2... d5 {[%clk 0:02:57.9]} 3. exd5 {[%clk 0:03:01.5]} 3... exd5 {[%clk
0:02:57.9]} 4. Nf3 {[%clk 0:03:02.4]} 4... Nf6 {[%clk 0:02:58]} 5. Bd3 {[%clk
0:03:02.3]} 5... c5 {[%clk 0:02:57.9]} 6. O-O {[%clk 0:03:00.7]} 6... c4 {[%clk
0:02:58]} 7. Re1+ {[%clk 0:03:01.3]} 7... Be7 {[%clk 0:02:58.4]} 8. Bf1 {[%clk
0:03:00.8]} 8... O-O {[%clk 0:02:59]} 9. b3 {[%clk 0:03:01.3]} 9... cxb3 {[%clk
0:02:58.1]} 10. axb3 {[%clk 0:03:01.2]} 10... Nc6 {[%clk 0:02:58.6]} 11. h3
{[%clk 0:02:55.4]} 11... Bf5 {[%clk 0:02:57.4]} 12. Ne5 {[%clk 0:02:39.4]} 12...
Nb4 {[%clk 0:02:42.7]} 13. Na3 {[%clk 0:02:36.7]} 13... Rc8 {[%clk 0:02:17.3]}
14. Re2 {[%clk 0:02:36.8]} 14... Ne4 {[%clk 0:02:04]} 15. Bb2 {[%clk 0:02:28.8]}
15... Nc3 {[%clk 0:01:53.3]} 16. Bxc3 {[%clk 0:02:28.5]} 16... Rxc3 {[%clk
0:01:54.2]} 17. g4 {[%clk 0:02:23.7]} 17... Be6 {[%clk 0:01:44]} 18. Qd2 {[%clk
0:02:14]} 18... Rc8 {[%clk 0:01:30.1]} 19. c3 {[%clk 0:01:31.8]} 19... Nc6
{[%clk 0:01:29.4]} 20. Nd3 {[%clk 0:01:29.8]} 20... h5 {[%clk 0:01:01.2]} 21.
Nf4 {[%clk 0:01:14.8]} 21... hxg4 {[%clk 0:00:52.3]} 22. Nxe6 {[%clk 0:01:14.3]}
22... fxe6 {[%clk 0:00:53]} 23. Qe3 {[%clk 0:01:05.5]} 23... e5 {[%clk
0:00:38.8]} 24. dxe5 {[%clk 0:00:58]} 24... Bg5 {[%clk 0:00:37.3]} 25. Qd3
{[%clk 0:00:55.9]} 25... d4 {[%clk 0:00:30.5]} 26. Nb5 {[%clk 0:00:51.8]} 26...
dxc3 {[%clk 0:00:28.3]} 27. Nd6 {[%clk 0:00:49.4]} 27... Rc7 {[%clk 0:00:23.1]}
28. Qxc3 {[%clk 0:00:37.8]} 28... Qe7 {[%clk 0:00:10.4]} 29. Ra4 {[%clk
0:00:28.6]} 29... gxh3 {[%clk 0:00:07.6]} 30. Bxh3 {[%clk 0:00:23.9]} 30... Nd8
{[%clk 0:00:04.6]} 31. Qg3 {[%clk 0:00:19.7]} 31... Bh6 {[%clk 0:00:02.9]} 32.
Rh4 {[%clk 0:00:16.4]} 32... Ne6 {[%clk 0:00:02.8]} 33. Rxh6 {[%clk 0:00:14.7]}
33... Nf4 {[%clk 0:00:02.6]} 34. Re4 {[%clk 0:00:06.3]} 34... Rc1+ {[%clk
0:00:02.1]} 35. Kh2 {[%clk 0:00:06.7]} 1-0

[Event "*** Titled Tuesday Blitz"]
[Site "Chess.com"]
[Date "2021.03.30"]
[Round "2"]
[White "Harry_Rakkel"]
[Black "Srisshhhtea"]
[Result "0-1"]
[WhiteElo "2603"]
[BlackElo "2335"]
[TimeControl "180+1"]
[EndTime "10:17:29 PDT"]
[Termination "Srisshhhtea won on time"]

1. Nf3 {[%clk 0:03:00.9]} 1... Nf6 {[%clk 0:02:59]} 2. c4 {[%clk 0:03:00.7]}
2... c5 {[%clk 0:02:53.5]} 3. g3 {[%clk 0:03:00.5]} 3... g6 {[%clk 0:02:50.6]}
4. Bg2 {[%clk 0:03:00.3]} 4... Bg7 {[%clk 0:02:51.1]} 5. O-O {[%clk 0:03:00.4]}
5... O-O {[%clk 0:02:51.2]} 6. d4 {[%clk 0:03:01]} 6... cxd4 {[%clk 0:02:49.6]}
7. Nxd4 {[%clk 0:03:01.9]} 7... d5 {[%clk 0:02:48.5]} 8. cxd5 {[%clk 0:03:00.6]}
8... Nxd5 {[%clk 0:02:48.8]} 9. Nb5 {[%clk 0:03:00.4]} 9... Be6 {[%clk
0:02:18.9]} 10. e4 {[%clk 0:02:30.4]} 10... Nb4 {[%clk 0:02:17.5]} 11. N1c3
{[%clk 0:02:22.7]} 11... N8c6 {[%clk 0:02:12.8]} 12. Bf4 {[%clk 0:02:15.9]}
12... Bc4 {[%clk 0:02:09.2]} 13. Re1 {[%clk 0:02:05.1]} 13... Nd3 {[%clk
0:02:03.5]} 14. Re3 {[%clk 0:01:55.3]} 14... Nxb2 {[%clk 0:01:52.7]} 15. Qc2
{[%clk 0:01:54.8]} 15... Nd3 {[%clk 0:01:51.2]} 16. Rd1 {[%clk 0:01:46.7]} 16...
Qa5 {[%clk 0:01:38.6]} 17. Bc7 {[%clk 0:01:29.4]} 17... Qa6 {[%clk 0:01:34.3]}
18. a4 {[%clk 0:01:18.8]} 18... Ncb4 {[%clk 0:01:23.6]} 19. Qb1 {[%clk
0:01:16.8]} 19... Rac8 {[%clk 0:01:13.8]} 20. Bf1 {[%clk 0:01:12.5]} 20... Bxc3
{[%clk 0:01:08.2]} 21. Bxd3 {[%clk 0:00:58.7]} 21... Bxd3 {[%clk 0:01:03.7]} 22.
Rexd3 {[%clk 0:00:58.6]} 22... Nxd3 {[%clk 0:01:03.5]} 23. Rxd3 {[%clk
0:00:58.8]} 23... Bg7 {[%clk 0:00:59.7]} 24. Rd7 {[%clk 0:00:51.4]} 24... Qxa4
{[%clk 0:00:57.1]} 25. Rxe7 {[%clk 0:00:48.6]} 25... Bf6 {[%clk 0:00:45]} 26.
Bd6 {[%clk 0:00:29.8]} 26... Bxe7 {[%clk 0:00:34.9]} 27. Bxe7 {[%clk 0:00:30.7]}
27... Rfe8 {[%clk 0:00:34.8]} 28. Bf6 {[%clk 0:00:24.5]} 28... Qxe4 {[%clk
0:00:32.1]} 29. Qb2 {[%clk 0:00:20.5]} 29... Rc2 {[%clk 0:00:22.6]} 30. Qa1
{[%clk 0:00:12.9]} 30... Rec8 {[%clk 0:00:21.4]} 31. Bg5 {[%clk 0:00:06.9]}
31... Qf5 {[%clk 0:00:16.8]} 32. Be3 {[%clk 0:00:04.4]} 32... Qxb5 {[%clk
0:00:16.3]} 33. Qf6 {[%clk 0:00:04]} 33... Qc6 {[%clk 0:00:15.7]} 34. Qf4 {[%clk
0:00:02]} 34... Qd5 {[%clk 0:00:15.4]} 35. h4 {[%clk 0:00:01.6]} 35... R2c4
{[%clk 0:00:13.5]} 0-1

[Event "*** Titled Tuesday Blitz"]
[Site "Chess.com"]
[Date "2021.03.30"]
[Round "2"]
[White "SoldierOfGod1"]
[Black "Kostukov_Alex"]
[Result "1-0"]
[WhiteElo "2514"]
[BlackElo "2302"]
[TimeControl "180+1"]
[EndTime "10:17:29 PDT"]
[Termination "SoldierOfGod1 won by checkmate"]

1. c4 {[%clk 0:03:00.9]} 1... g6 {[%clk 0:02:58.1]} 2. Nc3 {[%clk 0:03:00.8]}
2... Bg7 {[%clk 0:02:58.5]} 3. d4 {[%clk 0:03:01.7]} 3... d6 {[%clk 0:02:58.7]}
4. e4 {[%clk 0:03:02.3]} 4... e5 {[%clk 0:02:58.9]} 5. Nf3 {[%clk 0:03:00.3]}
5... exd4 {[%clk 0:02:59]} 6. Nxd4 {[%clk 0:03:00.4]} 6... Nc6 {[%clk
0:02:59.7]} 7. Be3 {[%clk 0:03:00.4]} 7... Nge7 {[%clk 0:02:58.8]} 8. Be2 {[%clk
0:02:58.3]} 8... O-O {[%clk 0:02:58.8]} 9. O-O {[%clk 0:02:58.2]} 9... f5 {[%clk
0:02:59.2]} 10. exf5 {[%clk 0:02:53]} 10... Bxd4 {[%clk 0:02:58.4]} 11. Bxd4
{[%clk 0:02:51.9]} 11... Nxf5 {[%clk 0:02:59.3]} 12. Be3 {[%clk 0:02:42.2]}
12... Nxe3 {[%clk 0:02:57.5]} 13. fxe3 {[%clk 0:02:43.1]} 13... Rxf1+ {[%clk
0:02:57.6]} 14. Qxf1 {[%clk 0:02:43.4]} 14... Be6 {[%clk 0:02:58.4]} 15. Nd5
{[%clk 0:02:42.9]} 15... Ne5 {[%clk 0:02:33.7]} 16. Rd1 {[%clk 0:02:28.8]} 16...
Bxd5 {[%clk 0:02:30.3]} 17. Rxd5 {[%clk 0:02:22.3]} 17... Qg5 {[%clk 0:02:30.1]}
18. Qf4 {[%clk 0:02:20.7]} 18... Qe7 {[%clk 0:02:13.4]} 19. c5 {[%clk
0:02:09.4]} 19... Rf8 {[%clk 0:02:09.5]} 20. Qg3 {[%clk 0:01:52.6]} 20... Kg7
{[%clk 0:01:47]} 21. cxd6 {[%clk 0:01:49.7]} 21... cxd6 {[%clk 0:01:46.8]} 22.
h3 {[%clk 0:01:45]} 22... Rc8 {[%clk 0:01:09.7]} 23. Rd2 {[%clk 0:01:27.4]}
23... Qf6 {[%clk 0:00:53.9]} 24. Qf4 {[%clk 0:01:21.1]} 24... Rc1+ {[%clk
0:00:48.2]} 25. Kh2 {[%clk 0:01:20.2]} 25... Qxf4+ {[%clk 0:00:39.4]} 26. exf4
{[%clk 0:01:21.1]} 26... Nf7 {[%clk 0:00:39.8]} 27. Bf3 {[%clk 0:01:17.9]} 27...
Rc7 {[%clk 0:00:32.8]} 28. Bd5 {[%clk 0:01:14.3]} 28... Rd7 {[%clk 0:00:31.9]}
29. Be6 {[%clk 0:01:12.4]} 29... Rd8 {[%clk 0:00:32.2]} 30. Rc2 {[%clk
0:01:10.7]} 30... Kf6 {[%clk 0:00:30.2]} 31. Bd5 {[%clk 0:01:11.1]} 31... Rd7
{[%clk 0:00:22.5]} 32. Rc8 {[%clk 0:00:57.5]} 32... Nd8 {[%clk 0:00:21.1]} 33.
Rc4 {[%clk 0:00:43.7]} 33... h5 {[%clk 0:00:17.2]} 34. Re4 {[%clk 0:00:42.7]}
34... Nf7 {[%clk 0:00:15.4]} 35. g4 {[%clk 0:00:39.8]} 35... hxg4 {[%clk
0:00:15.2]} 36. hxg4 {[%clk 0:00:40.7]} 36... g5 {[%clk 0:00:15]} 37. Re6+
{[%clk 0:00:39.5]} 37... Kg7 {[%clk 0:00:13.7]} 38. f5 {[%clk 0:00:38.6]} 38...
Ne5 {[%clk 0:00:13.3]} 39. f6+ {[%clk 0:00:37.7]} 39... Kf8 {[%clk 0:00:10.9]}
40. Kg3 {[%clk 0:00:29.4]} 40... Rd8 {[%clk 0:00:08.2]} 41. a3 {[%clk
0:00:25.9]} 41... Nf7 {[%clk 0:00:08.1]} 42. Re7 {[%clk 0:00:25.6]} 42... Ne5
{[%clk 0:00:07.6]} 43. Rh7 {[%clk 0:00:25]} 43... Rd7 {[%clk 0:00:06.5]} 44.
Rh8# {[%clk 0:00:24.3]} 1-0

[Event "*** Titled Tuesday Blitz"]
[Site "Chess.com"]
[Date "2021.03.30"]
[Round "2"]
[White "chegueps"]
[Black "stepakyedael"]
[Result "0-1"]
[WhiteElo "2454"]
[BlackElo "2309"]
[TimeControl "180+1"]
[EndTime "10:17:29 PDT"]
[Termination "stepakyedael won by resignation"]

1. d4 {[%clk 0:03:00.2]} 1... Nf6 {[%clk 0:02:59.1]} 2. Nf3 {[%clk 0:03:00.3]}
2... g6 {[%clk 0:02:58.3]} 3. Nc3 {[%clk 0:03:00.9]} 3... d5 {[%clk 0:02:56.8]}
4. Bf4 {[%clk 0:03:01.5]} 4... Bg7 {[%clk 0:02:55.6]} 5. Qd2 {[%clk 0:03:02]}
5... h6 {[%clk 0:02:54.7]} 6. h4 {[%clk 0:02:57.7]} 6... Ne4 {[%clk 0:02:54.7]}
7. Nxe4 {[%clk 0:02:49]} 7... dxe4 {[%clk 0:02:54.7]} 8. Ne5 {[%clk 0:02:49.6]}
8... Nd7 {[%clk 0:02:45.7]} 9. Qc3 {[%clk 0:02:10.7]} 9... Nxe5 {[%clk
0:02:37.9]} 10. Bxe5 {[%clk 0:02:11.6]} 10... Bxe5 {[%clk 0:02:23.3]} 11. dxe5
{[%clk 0:02:12.5]} 11... Be6 {[%clk 0:02:17.6]} 12. Rd1 {[%clk 0:02:07.4]} 12...
Qc8 {[%clk 0:02:12.9]} 13. e3 {[%clk 0:01:34.8]} 13... O-O {[%clk 0:02:07.8]}
14. Be2 {[%clk 0:01:28]} 14... h5 {[%clk 0:01:59]} 15. Qb4 {[%clk 0:01:24.7]}
15... c5 {[%clk 0:01:46.9]} 16. Qxe4 {[%clk 0:01:21.2]} 16... Bf5 {[%clk
0:01:35.5]} 17. Qf4 {[%clk 0:01:14]} 17... Bxc2 {[%clk 0:01:28.5]} 18. Rc1
{[%clk 0:01:05.9]} 18... Bf5 {[%clk 0:01:19]} 19. Rg1 {[%clk 0:01:06.2]} 19...
b6 {[%clk 0:01:10.7]} 20. Bf3 {[%clk 0:00:59.1]} 20... Rb8 {[%clk 0:01:07.8]}
21. g4 {[%clk 0:00:59.3]} 21... hxg4 {[%clk 0:01:04.5]} 22. Bxg4 {[%clk
0:01:00.2]} 22... Bxg4 {[%clk 0:00:46.4]} 23. Rxg4 {[%clk 0:01:01.1]} 23... Qe6
{[%clk 0:00:41.5]} 24. h5 {[%clk 0:00:55.9]} 24... Kg7 {[%clk 0:00:35.4]} 25.
Ke2 {[%clk 0:00:37]} 25... Rh8 {[%clk 0:00:34.2]} 26. hxg6 {[%clk 0:00:35.5]}
26... fxg6 {[%clk 0:00:33.4]} 27. Rcg1 {[%clk 0:00:34.4]} 27... Rh6 {[%clk
0:00:32.8]} 28. b3 {[%clk 0:00:29.1]} 28... Rf8 {[%clk 0:00:27.1]} 29. Qe4
{[%clk 0:00:28.8]} 29... Rf5 {[%clk 0:00:25.2]} 30. f4 {[%clk 0:00:26.3]} 30...
Rfh5 {[%clk 0:00:22]} 31. R1g2 {[%clk 0:00:23]} 31... Rh2 {[%clk 0:00:19.7]} 32.
Rxh2 {[%clk 0:00:21.9]} 32... Rxh2+ {[%clk 0:00:19.2]} 33. Rg2 {[%clk
0:00:22.1]} 33... Rxg2+ {[%clk 0:00:18.5]} 34. Qxg2 {[%clk 0:00:23]} 34... Qf5
{[%clk 0:00:18.6]} 35. Qb7 {[%clk 0:00:07.1]} 35... Qc2+ {[%clk 0:00:17.6]} 36.
Kf3 {[%clk 0:00:07]} 36... Qd1+ {[%clk 0:00:17.7]} 37. Kg3 {[%clk 0:00:05.1]}
37... Qg1+ {[%clk 0:00:17.3]} 38. Kf3 {[%clk 0:00:04.8]} 38... Qh1+ {[%clk
0:00:16.8]} 0-1

[Event "*** Titled Tuesday Blitz"]
[Site "Chess.com"]
[Date "2021.03.30"]
[Round "2"]
[White "chessmachine14"]
[Black "suyu28"]
[Result "0-1"]
[WhiteElo "2324"]
[BlackElo "2613"]
[TimeControl "180+1"]
[EndTime "10:17:32 PDT"]
[Termination "suyu28 won by checkmate"]

1. e4 {[%clk 0:03:00.9]} 1... c5 {[%clk 0:02:58.1]} 2. Nf3 {[%clk 0:02:58.5]}
2... d6 {[%clk 0:02:58.4]} 3. d4 {[%clk 0:02:56.2]} 3... cxd4 {[%clk 0:02:59.3]}
4. Nxd4 {[%clk 0:02:56.4]} 4... Nf6 {[%clk 0:02:59.5]} 5. Nc3 {[%clk 0:02:56.4]}
5... g6 {[%clk 0:02:59.5]} 6. Be2 {[%clk 0:02:53.2]} 6... Bg7 {[%clk 0:02:59.8]}
7. O-O {[%clk 0:02:53.2]} 7... O-O {[%clk 0:03:00.3]} 8. Re1 {[%clk 0:02:53]}
8... Nc6 {[%clk 0:03:00.6]} 9. Nb3 {[%clk 0:02:52.9]} 9... Be6 {[%clk
0:02:59.5]} 10. Bf1 {[%clk 0:02:52.3]} 10... Rc8 {[%clk 0:02:59.7]} 11. Bg5
{[%clk 0:02:48.2]} 11... Ne5 {[%clk 0:02:59.5]} 12. Nd5 {[%clk 0:02:43.1]} 12...
Bxd5 {[%clk 0:02:48.1]} 13. exd5 {[%clk 0:02:43.1]} 13... Nc4 {[%clk 0:02:48.4]}
14. Bxc4 {[%clk 0:02:42.7]} 14... Rxc4 {[%clk 0:02:48.8]} 15. Qd2 {[%clk
0:02:20.8]} 15... Qc7 {[%clk 0:02:20.2]} 16. c3 {[%clk 0:01:37.7]} 16... Ne4
{[%clk 0:02:16.8]} 17. Qe3 {[%clk 0:01:37.7]} 17... Nxg5 {[%clk 0:02:08.7]} 18.
Qxg5 {[%clk 0:01:37.6]} 18... Bf6 {[%clk 0:02:09.4]} 19. Qe3 {[%clk 0:01:26.3]}
19... a5 {[%clk 0:02:06.2]} 20. Rad1 {[%clk 0:01:09.9]} 20... a4 {[%clk
0:01:19.3]} 21. Nd2 {[%clk 0:01:08.4]} 21... Rc5 {[%clk 0:01:19.9]} 22. Ne4
{[%clk 0:01:08]} 22... Rb5 {[%clk 0:01:20.5]} 23. Nxf6+ {[%clk 0:00:19]} 23...
exf6 {[%clk 0:01:21.4]} 24. Qd4 {[%clk 0:00:19.6]} 24... Kg7 {[%clk 0:01:13.9]}
25. Re2 {[%clk 0:00:19.8]} 25... Rc8 {[%clk 0:00:53.5]} 26. Rde1 {[%clk
0:00:19]} 26... Qc5 {[%clk 0:00:52.1]} 27. Qxa4 {[%clk 0:00:18.3]} 27... Qxd5
{[%clk 0:00:48.3]} 28. h3 {[%clk 0:00:11.2]} 28... Ra5 {[%clk 0:00:48]} 29. Qf4
{[%clk 0:00:10.4]} 29... Rxa2 {[%clk 0:00:41.5]} 30. Rd2 {[%clk 0:00:08.4]}
30... Qg5 {[%clk 0:00:36.4]} 31. Qxd6 {[%clk 0:00:08.2]} 31... Rxc3 {[%clk
0:00:30.5]} 32. Re7 {[%clk 0:00:06.4]} 32... Rc1+ {[%clk 0:00:20.1]} 33. Kh2
{[%clk 0:00:06.4]} 33... Ra8 {[%clk 0:00:17.3]} 34. Qd7 {[%clk 0:00:06.2]} 34...
Rf8 {[%clk 0:00:17]} 35. Rde2 {[%clk 0:00:05.9]} 35... Qf4+ {[%clk 0:00:16.4]}
36. g3 {[%clk 0:00:05.7]} 36... Qf3 {[%clk 0:00:16.7]} 37. Qxb7 {[%clk
0:00:02.7]} 37... Rh1# {[%clk 0:00:16]} 0-1

[Event "*** Titled Tuesday Blitz"]
[Site "Chess.com"]
[Date "2021.03.30"]
[Round "2"]
[White "MYMChessAcademy"]
[Black "Tpros"]
[Result "0-1"]
[WhiteElo "2254"]
[BlackElo "2461"]
[TimeControl "180+1"]
[EndTime "10:17:32 PDT"]
[Termination "Tpros won by checkmate"]

1. e4 {[%clk 0:03:00.9]} 1... c5 {[%clk 0:02:58.9]} 2. Nf3 {[%clk 0:03:00.2]}
2... d6 {[%clk 0:02:56.2]} 3. d4 {[%clk 0:03:00]} 3... cxd4 {[%clk 0:02:55]} 4.
Nxd4 {[%clk 0:03:00.6]} 4... Nf6 {[%clk 0:02:54.2]} 5. Nc3 {[%clk 0:03:00.8]}
5... g6 {[%clk 0:02:53.5]} 6. Be3 {[%clk 0:02:59.1]} 6... a6 {[%clk 0:02:52.5]}
7. Be2 {[%clk 0:02:57.5]} 7... Bg7 {[%clk 0:02:50.8]} 8. O-O {[%clk 0:02:56.6]}
8... O-O {[%clk 0:02:48.4]} 9. Qd2 {[%clk 0:02:54.1]} 9... Bd7 {[%clk
0:02:47.1]} 10. Rad1 {[%clk 0:02:36.6]} 10... Nc6 {[%clk 0:02:46.4]} 11. a3
{[%clk 0:02:26]} 11... Nxd4 {[%clk 0:02:44.5]} 12. Bxd4 {[%clk 0:02:25.3]} 12...
Bc6 {[%clk 0:02:45.4]} 13. Bf3 {[%clk 0:01:56.1]} 13... Rc8 {[%clk 0:02:40.5]}
14. Rfe1 {[%clk 0:01:45.1]} 14... b5 {[%clk 0:02:37.6]} 15. Nd5 {[%clk
0:01:26.2]} 15... Bxd5 {[%clk 0:02:15.4]} 16. exd5 {[%clk 0:01:25.3]} 16... Re8
{[%clk 0:02:15.4]} 17. Bxf6 {[%clk 0:01:13]} 17... Bxf6 {[%clk 0:02:12.9]} 18.
Bg4 {[%clk 0:01:10.4]} 18... Rc5 {[%clk 0:01:58.6]} 19. c3 {[%clk 0:00:53.4]}
19... a5 {[%clk 0:01:57.4]} 20. Re3 {[%clk 0:00:39.3]} 20... Qb6 {[%clk
0:01:51.4]} 21. Rh3 {[%clk 0:00:37]} 21... Bg7 {[%clk 0:01:45.1]} 22. Qf4 {[%clk
0:00:30.1]} 22... b4 {[%clk 0:01:25.3]} 23. axb4 {[%clk 0:00:24.8]} 23... axb4
{[%clk 0:01:26.2]} 24. cxb4 {[%clk 0:00:23]} 24... Rc2 {[%clk 0:01:18.9]} 25.
Rg3 {[%clk 0:00:12.3]} 25... Be5 {[%clk 0:01:14.5]} 26. Qh6 {[%clk 0:00:11.7]}
26... Qxf2+ {[%clk 0:01:10.9]} 27. Kh1 {[%clk 0:00:11.6]} 27... Bxg3 {[%clk
0:01:08.4]} 28. Qh3 {[%clk 0:00:12.1]} 28... Be5 {[%clk 0:00:49.2]} 29. Qf3
{[%clk 0:00:10.6]} 29... Qxf3 {[%clk 0:00:47.4]} 30. Bxf3 {[%clk 0:00:11.5]}
30... Rxb2 {[%clk 0:00:46.6]} 31. Rf1 {[%clk 0:00:08.8]} 31... Rxb4 {[%clk
0:00:44.8]} 32. Bg4 {[%clk 0:00:07.8]} 32... f5 {[%clk 0:00:43.9]} 33. Be2
{[%clk 0:00:07]} 33... Rc8 {[%clk 0:00:42.2]} 34. Ba6 {[%clk 0:00:06]} 34... Rc2
{[%clk 0:00:40.8]} 35. Bd3 {[%clk 0:00:05.1]} 35... Rd2 {[%clk 0:00:38.4]} 36.
Ba6 {[%clk 0:00:05]} 36... Rbb2 {[%clk 0:00:34]} 37. Rg1 {[%clk 0:00:03.4]}
37... Bd4 {[%clk 0:00:33.1]} 38. Rf1 {[%clk 0:00:02]} 38... Rxg2 {[%clk
0:00:32.2]} 39. Rf2 {[%clk 0:00:02]} 39... Rbxf2 {[%clk 0:00:30]} 40. Bc8 {[%clk
0:00:02.9]} 40... Rxh2+ {[%clk 0:00:23.7]} 41. Kg1 {[%clk 0:00:02.9]} 41...
Rfg2+ {[%clk 0:00:24.3]} 42. Kf1 {[%clk 0:00:03.4]} 42... Rg1# {[%clk
0:00:24.1]} 0-1

[Event "*** Titled Tuesday Blitz"]
[Site "Chess.com"]
[Date "2021.03.30"]
[Round "2"]
[White "canary2016"]
[Black "c_r_e_e_p_e_r"]
[Result "0-1"]
[WhiteElo "2011"]
[BlackElo "2384"]
[TimeControl "180+1"]
[EndTime "10:17:33 PDT"]
[Termination "c_r_e_e_p_e_r won by checkmate"]

1. d4 {[%clk 0:03:00.9]} 1... d5 {[%clk 0:02:59.7]} 2. c4 {[%clk 0:02:57.4]}
2... c6 {[%clk 0:03:00.1]} 3. Nf3 {[%clk 0:02:56.6]} 3... Nf6 {[%clk 0:03:00.2]}
4. g3 {[%clk 0:02:54.9]} 4... dxc4 {[%clk 0:02:59.2]} 5. Bg2 {[%clk 0:02:48.6]}
5... b5 {[%clk 0:02:57.9]} 6. Ne5 {[%clk 0:02:47.4]} 6... Bb7 {[%clk 0:02:57.6]}
7. Nc3 {[%clk 0:02:46.8]} 7... a6 {[%clk 0:02:56]} 8. O-O {[%clk 0:02:39.7]}
8... e6 {[%clk 0:02:56.3]} 9. b3 {[%clk 0:02:07.6]} 9... b4 {[%clk 0:02:51.4]}
10. Na4 {[%clk 0:01:51.9]} 10... c3 {[%clk 0:02:51.4]} 11. a3 {[%clk 0:01:51.9]}
11... a5 {[%clk 0:02:43.8]} 12. Nc5 {[%clk 0:01:47.8]} 12... Bxc5 {[%clk
0:02:39.5]} 13. dxc5 {[%clk 0:01:47.6]} 13... Qxd1 {[%clk 0:02:27]} 14. Rxd1
{[%clk 0:01:47.4]} 14... O-O {[%clk 0:02:21.5]} 15. Bg5 {[%clk 0:01:44.4]} 15...
Nd5 {[%clk 0:02:19.7]} 16. Bxd5 {[%clk 0:01:29.4]} 16... cxd5 {[%clk 0:02:12.8]}
17. Be7 {[%clk 0:01:29]} 17... Rc8 {[%clk 0:02:11]} 18. Bd6 {[%clk 0:01:21.7]}
18... f6 {[%clk 0:02:03.5]} 19. Nf3 {[%clk 0:01:19.6]} 19... Na6 {[%clk
0:01:59.5]} 20. axb4 {[%clk 0:01:13.7]} 20... axb4 {[%clk 0:01:58.5]} 21. Ra5
{[%clk 0:01:06.9]} 21... e5 {[%clk 0:01:54.3]} 22. e3 {[%clk 0:00:58.3]} 22...
d4 {[%clk 0:01:53.6]} 23. Ne1 {[%clk 0:00:51.7]} 23... Be4 {[%clk 0:01:13.7]}
24. exd4 {[%clk 0:00:46.7]} 24... c2 {[%clk 0:01:08.6]} 25. Rc1 {[%clk
0:00:46.4]} 25... exd4 {[%clk 0:01:06]} 26. Nxc2 {[%clk 0:00:46.5]} 26... d3
{[%clk 0:00:50.3]} 27. Ne3 {[%clk 0:00:38.6]} 27... Bf3 {[%clk 0:00:50.4]} 28.
Rc4 {[%clk 0:00:21.2]} 28... d2 {[%clk 0:00:37.6]} 29. Rd4 {[%clk 0:00:20.6]}
29... Nxc5 {[%clk 0:00:38]} 30. Rxa8 {[%clk 0:00:13.4]} 30... Rxa8 {[%clk
0:00:37.3]} 31. Rxd2 {[%clk 0:00:10.4]} 31... Ra1+ {[%clk 0:00:36.2]} 32. Nf1
{[%clk 0:00:10.1]} 32... Nxb3 {[%clk 0:00:35.9]} 33. Rb2 {[%clk 0:00:09.7]}
33... Nd4 {[%clk 0:00:31.5]} 34. Bxb4 {[%clk 0:00:03.9]} 34... Ne2+ {[%clk
0:00:29.4]} 35. Rxe2 {[%clk 0:00:03.1]} 35... Bxe2 {[%clk 0:00:30.3]} 36. Kg2
{[%clk 0:00:03.2]} 36... Rxf1 {[%clk 0:00:27.8]} 37. h4 {[%clk 0:00:02.7]} 37...
Rb1 {[%clk 0:00:26.4]} 38. Bd2 {[%clk 0:00:02.5]} 38... Rd1 {[%clk 0:00:25.4]}
39. Be3 {[%clk 0:00:02.8]} 39... Kf7 {[%clk 0:00:23.9]} 40. Bf4 {[%clk
0:00:03.2]} 40... Ke6 {[%clk 0:00:22.6]} 41. Be3 {[%clk 0:00:03.7]} 41... Kf5
{[%clk 0:00:21.3]} 42. Bf4 {[%clk 0:00:04]} 42... g5 {[%clk 0:00:19.1]} 43. hxg5
{[%clk 0:00:04.2]} 43... fxg5 {[%clk 0:00:20]} 44. Be3 {[%clk 0:00:04.6]} 44...
g4 {[%clk 0:00:19.3]} 45. Bc5 {[%clk 0:00:04.7]} 45... Bf3+ {[%clk 0:00:19.1]}
46. Kh2 {[%clk 0:00:05]} 46... Rh1# {[%clk 0:00:19.7]} 0-1